Cogmind - Beta 11 *** ADVENTURER MODE // 2022.03.24 @ 23:02:03 Player: Zeke Result: Destroyed by G-34 Mercenary with Small Laser Performance ------------- Evolutions (1) 500 Regions Visited (4) 800 Robots Destroyed (103) 515 Value Destroyed (2470) 2470 Prototype IDs (9) 180 Alien Tech Used (0) 0 Bonus (0) 0 TOTAL SCORE: 4465 Bonus ------- None Cogmind --------- Core Integrity 0/400 Matter 300/300 Energy 267/280 System Corruption 0% Temperature Cool (72) Movement Walking (190) Ox1 Location -9/Storage Parts ------- > --- POWER (1) -------- Cooled Ion Engine > --- PROPULSION (2) --- Aluminum Leg Aluminum Leg > --- UTILITY (4) ------ Small Storage Unit Sensor Array Signal Interpreter Light Armor Plating > --- WEAPON (2) ------- Beam Rifle Beam Rifle > --- INVENTORY (8) ---- Cold Fusion Reactor Improved Heat Sink Experimental Sensor Array System Shield Improved Medium Laser Grenade Launcher Datajack Mining Laser Peak State ------------ > --- POWER ------------ Cooled Ion Engine > --- PROPULSION ------- Aluminum Leg Aluminum Leg > --- UTILITY ---------- Improved Heat Sink Small Storage Unit Experimental Sensor Array Signal Interpreter > --- WEAPON ----------- Beam Rifle Beam Rifle > --- INVENTORY -------- Cooled Ion Engine Sensor Array System Shield Recalibrator Improved Medium Laser Grenade Launcher Datajack Mining Laser [Rating: 24] Favorites ----------- Power Cooled Ion Engine Engine Cooled Ion Engine Reactor Cold Fusion Reactor Propulsion Aluminum Leg Leg Aluminum Leg Utility Small Storage Unit Device Sensor Array Storage Small Storage Unit Processor Signal Interpreter Hackware Hacking Suite Protection Light Armor Plating Weapon Improved Medium Laser Energy Gun Improved Medium Laser Ballistic Gun Light Assault Rifle Launcher Grenade Launcher Special Melee Weapon Datajack Build | -11 -10 -10 -9 -9 ------- Run | Scr Mat Min Mat Sto Slots Evolved 2 | . . . 2 . Power . | . . . . . Propulsion . | . . . . . Utility 2 | . . . 2 . Weapon . | . . . . . Parts Attached 89 | 6 10 . 54 19 Power 14 | 1 1 . 8 4 Engine 13 | 1 1 . 8 3 Core . | . . . . . Reactor 1 | . . . . 1 Propulsion 21 | 2 . . 14 5 Treads . | . . . . . Leg 21 | 2 . . 14 5 Wheel . | . . . . . Hover . | . . . . . Flight . | . . . . . Utility 21 | 1 6 . 10 4 Device 16 | . 4 . 9 3 Storage 1 | 1 . . . . Processor 2 | . 2 . . . Hackware 1 | . . . 1 . Protection 1 | . . . . 1 Artifact . | . . . . . Weapon 33 | 2 3 . 22 6 Energy Gun 21 | 1 2 . 14 4 Energy Cannon . | . . . . . Ballistic Gun 1 | 1 . . . . Ballistic Cannon . | . . . . . Launcher 3 | . . . 2 1 Special Weapon . | . . . . . Impact Weapon . | . . . . . Slashing Weapon . | . . . . . Piercing Weapon . | . . . . . Special Melee Weapon 8 | . 1 . 6 1 Unidentified Prototypes 3 | . . . 2 1 Parts Lost 4 | . . . 4 . Power . | . . . . . Propulsion 1 | . . . 1 . Utility 2 | . . . 2 . Weapon 1 | . . . 1 . Highest Loss Streak 2 | . . . 2 . To Critical Strikes . | . . . . . Average Slot Usage (%) 99 | . 98 100 99 99 Engine 11 | . 14 14 11 10 Leg 23 | . 28 28 21 22 Device 14 | . 10 . 17 20 Storage 11 | . 14 14 11 11 Processor 9 | . 1 14 11 11 Hackware 1 | . . . 3 . Energy Gun 21 | . 19 28 20 20 Special Melee Weapon 2 | . 6 . 1 . Naked Turns . | . . . . . Heaviest Build 23 | 11 15 14 21 23 Greatest Support 20 | 20 20 20 20 20 Greatest Overweight (x) 2 | . . . 2 1 Average Overweight (x) . | . . . . . Largest Inventory Capacity 8 | 8 8 8 8 8 Average Capacity 7 | 7 8 8 8 8 Most Carried 8 | 5 8 8 8 8 Average Carried 7 | 1 6 8 7 7 Final Capacity 8 | 8 8 8 8 8 Final Carried 8 | 2 8 8 8 8 Class Distribution -------------------- 62% | Scavenger-Mutant 37% | Mutant Dominant Class ---------------- Mutant | -10/Materials Mutant | -10/Mines Scavenger-Mutant | -9/Materials Scavenger-Mutant | -9/Storage Resources | -11 -10 -10 -9 -9 ----------- Run | Scr Mat Min Mat Sto Matter Collected 1125 | 229 121 10 565 200 Remotely . | . . . . . Salvage Created 3656 | . 562 196 2164 734 Parts 196 | . 34 11 115 36 Haulers Intercepted 4 | . 1 . 3 . Recyclers Shooed 1 | . 1 . . . Parts Field Recycled . | . . . . . Retrieved Matter . | . . . . . Parts Self-Destructed . | . . . . . Prevented . | . . . . . Kills | -11 -10 -10 -9 -9 ------- Run | Scr Mat Min Mat Sto Combat Hostiles Destroyed 67 | . 7 8 38 14 Guns 59 | . 7 7 33 12 Classes Destroyed 12 | . 7 1 4 . Worker 9 | . 3 . 5 1 Builder 4 | . 3 . 1 . Tunneler 1 | . . 1 . . Hauler 4 | . 1 . 3 . Recycler 4 | . 2 . 1 1 Mechanic 1 | . . . 1 . Operator 3 | . . . 3 . Watcher 10 | . 3 . 5 2 Swarmer 16 | . 3 6 4 3 Grunt 34 | . 4 2 23 5 Brawler 2 | . . . 1 1 Sentry 15 | . . . 10 5 Best Kill Streak 8 | . 4 4 6 8 Combat Bots Only 7 | . 3 3 4 7 Max Kills in Single Turn 2 | . 1 2 2 2 Gunslinging 1 | . . 1 1 1 Exploded . | . . . . . Melee . | . . . . . Uniques/NPCs Destroyed . | . . . . . Combat | -11 -10 -10 -9 -9 -------- Run | Scr Mat Min Mat Sto Damage Taken 1881 | . 117 155 1215 394 Core 447 | . 21 25 292 109 Absorbed by Shields . | . . . . . Core Remaining (%) 90 | 100 . 81 . . Volleys Fired 239 | . 63 14 123 39 Largest 2 | . 2 2 2 2 Hottest 112 | . 90 100 112 112 Shots Fired 412 | . 80 28 233 71 Gun 408 | . 80 28 230 70 Cannon . | . . . . . Launcher 4 | . . . 3 1 Special . | . . . . . Kinetic . | . . . . . Thermal 408 | . 80 28 230 70 Explosive 4 | . . . 3 1 Electromagnetic . | . . . . . Robot Hit Streak 74 | . 21 18 47 74 Robot Miss Streak 4 | . 4 3 3 1 Penetration Max . | . . . . . Secondary Targets 13 | . 3 1 7 2 Max Gunslinging Chain 1 | . 1 1 1 1 Shots Hit Robots 364 | . 67 22 210 65 Core Hits 143 | . 29 10 77 27 Critical Kills . | . . . . . Critical Parts Destroyed . | . . . . . Critical Strikes 24 | . 3 2 15 4 Burn 24 | . 3 2 15 4 Melee Attacks 23 | . 8 . 15 . Impact . | . . . . . Slashing . | . . . . . Piercing . | . . . . . Sneak Attacks 19 | . 7 . 12 . Combat Hostiles . | . . . . . Follow-up Attacks . | . . . . . Damage Inflicted 5029 | . 749 260 3031 989 Guns 4945 | . 741 260 2988 956 Cannons . | . . . . . Explosions 72 | . . . 39 33 Melee . | . . . . . Ramming 12 | . 8 . 4 . Kinetic . | . . . . . Thermal 4945 | . 741 260 2988 956 Explosive 72 | . . . 39 33 Electromagnetic . | . . . . . Impact . | . . . . . Slashing . | . . . . . Piercing . | . . . . . Highest Corruption . | . . . . . Average Corruption . | . . . . . Corruption Purged . | . . . . . Corruption Blocked . | . . . . . Overload Shots . | . . . . . Overflow Damage . | . . . . . Projectiles . | . . . . . Explosions . | . . . . . Melee . | . . . . . Knockbacks . | . . . . . Impact . | . . . . . Kinetic . | . . . . . Secondary . | . . . . . Self-Inflicted Damage 25 | . . . 25 . Shots 2 | . . . 2 . Rammed . | . . . . . Targets Rammed 3 | . 1 . 1 1 Kicked 3 | . 1 . 1 1 Crushed . | . . . . . Highest Temperature 309 | . 252 288 309 261 Average Temperature 66 | . 52 109 60 75 Received Heat Transfer 1005 | . 66 54 678 207 Effects 3 | . . . 2 1 Energy Bleed 1 | . . . . 1 Interference 2 | . . . 2 . Siege Activations . | . . . . . Robots Corrupted . | . . . . . Combat Hostiles . | . . . . . Parts Fried . | . . . . . Impact Corruptions . | . . . . . Robots Melted 8 | . . 1 5 2 Combat Hostiles 8 | . . 1 5 2 Parts Melted 45 | . 5 5 26 9 Heat Transferred 14183 | . 2359 925 8198 2701 Parts Sabotaged . | . . . . . Parts Stolen . | . . . . . Parts Stripped . | . . . . . Power Chain Reactions . | . . . . . Missiles Intercepted . | . . . . . Alert | -11 -10 -10 -9 -9 ------- Run | Scr Mat Min Mat Sto Peak Influence 385 | . 232 195 385 313 Initial . | . . . . . Average 103 | . 58 59 123 140 Maximum Alert Level 1 | . 1 . 1 1 Low Security (%) 82 | 100 93 100 77 67 Level 1 17 | . 6 . 22 32 Level 2 . | . . . . . Level 3 . | . . . . . Level 4 . | . . . . . Level 5 . | . . . . . High Security . | . . . . . Max Security . | . . . . . Squads Dispatched 7 | . . . 5 2 Investigation 3 | . . . 2 1 Extermination . | . . . . . Reinforcement 4 | . . . 3 1 Assault . | . . . . . Garrison . | . . . . . Intercept . | . . . . . Searches Triggered . | . . . . . Construction Impeded . | . . . . . Haulers Reinforced . | . . . . . Active Scanning Responses . | . . . . . Cargo Convoy Interrupts . | . . . . . Stealth | -11 -10 -10 -9 -9 --------- Run | Scr Mat Min Mat Sto Distress Signals 7 | . 1 . 4 2 Communications Jammed . | . . . . . Distress Signals . | . . . . . Times Spotted 97 | . 15 8 53 21 Peak Tracking Total 6 | . 5 3 4 6 Tactical Retreats 3 | . . . 2 1 Traps | -11 -10 -10 -9 -9 ------- Run | Scr Mat Min Mat Sto Traps Triggered 6 | . 1 . 3 2 Indirectly . | . . . . . Trap Hack Attempts . | . . . . . Triggered . | . . . . . Disarmed . | . . . . . Reprogrammed 8 | . . . 8 . Reused 1 | . . . 1 . Traps Extracted . | . . . . . Installed . | . . . . . Triggered 1 | . . . 1 . Machines | -11 -10 -10 -9 -9 ---------- Run | Scr Mat Min Mat Sto Machines Disabled 4 | . . . 4 . Max in Single Turn 1 | . . . 1 . Machines Sabotaged . | . . . . . Garrisons Compromised . | . . . . . Overloaded Fab Kills . | . . . . . Hacking | -11 -10 -10 -9 -9 --------- Run | Scr Mat Min Mat Sto Machines Accessed 17 | . 7 . 8 2 Terminals 15 | . 6 . 7 2 Fabricators . | . . . . . Repair Stations . | . . . . . Recycling Units 1 | . 1 . . . Scanalyzers 1 | . . . 1 . Garrison Access . | . . . . . Total Hacks 34 | . 15 . 15 4 Successful 22 | . 10 . 11 1 Failed 12 | . 5 . 4 3 Catastrophic . | . . . . . Database Lockouts . | . . . . . Manual 4 | . . . 4 . Terminals 31 | . 14 . 13 4 Fabricators . | . . . . . Repair Stations . | . . . . . Recycling Units 1 | . 1 . . . Scanalyzers 2 | . . . 2 . Garrison Access . | . . . . . Terminal Hacks 19 | . 9 . 9 1 Prototype ID Bank 4 | . 2 . 2 . Open Door 1 | . . . . 1 Unreport Threat 1 | . . . 1 . Locate Traps 7 | . 4 . 3 . Reprogram Traps 2 | . . . 2 . Maintenance Status 1 | . 1 . . . Transport Status 1 | . 1 . . . Zone Layout 2 | . 1 . 1 . Fabricator Hacks . | . . . . . Repair Station Hacks . | . . . . . Recycling Unit Hacks 1 | . 1 . . . Report Inventory 1 | . 1 . . . Scanalyzer 2 | . . . 2 . Insert Component 1 | . . . 1 . Analyze 1 | . . . 1 . Garrison Access Hacks . | . . . . . Unauthorized Hacks . | . . . . . Terminals . | . . . . . Fabricators . | . . . . . Repair Stations . | . . . . . Recycling Units . | . . . . . Scanalyzers . | . . . . . Garrison Access . | . . . . . Data Cores Recovered . | . . . . . Used . | . . . . . Hacking Detections 12 | . 5 . 6 1 Full Trace Events . | . . . . . Feedback Events . | . . . . . Feedback Blocked . | . . . . . Robot Schematics Acquired . | . . . . . Robots Built . | . . . . . Authchips . | . . . . . Time . | . . . . . Total Robot Build Rating . | . . . . . Part Schematics Acquired 1 | . . . 1 . Parts Built . | . . . . . Authchips . | . . . . . Time . | . . . . . Total Part Build Rating . | . . . . . Parts Repaired . | . . . . . Time . | . . . . . Parts Recycled . | . . . . . Recycled Matter . | . . . . . Retrieved Matter . | . . . . . Retrieved Components . | . . . . . Parts Scanalyzed 1 | . . . 1 . Part Schematics Acquired 1 | . . . 1 . Parts Damaged . | . . . . . Bothacking | -11 -10 -10 -9 -9 ------------ Run | Scr Mat Min Mat Sto Used RIF Installer . | . . . . . Robots Hacked 12 | . 4 . 8 . Non-combat 12 | . 4 . 8 . Combat . | . . . . . Robot Hacks Applied 14 | . 4 . 10 . parse_system 4 | . 3 . 1 . no_distress 8 | . . . 8 . find_station 1 | . 1 . . . check_alert 1 | . . . 1 . Relay Couplers Released . | . . . . . Fabnet Peak Effective % . | . . . . . Robots Rewired . | . . . . . Allies Hacked . | . . . . . Hacks Repelled . | . . . . . Allies | -11 -10 -10 -9 -9 -------- Run | Scr Mat Min Mat Sto Total Allies . | . . . . . Largest Group . | . . . . . Highest-Rated Group . | . . . . . Highest-Rated Ally . | . . . . . Total Orders . | . . . . . Ally Attacks . | . . . . . Total Damage . | . . . . . Kills . | . . . . . Allies Corrupted . | . . . . . Allies Melted . | . . . . . Intel | -11 -10 -10 -9 -9 ------- Run | Scr Mat Min Mat Sto Robot Analysis Total . | . . . . . Derelict Logs Recovered 3 | . . 3 . . Drone Launches . | . . . . . Drone Recoveries . | . . . . . Exploration | -11 -10 -10 -9 -9 ------------- Run | Scr Mat Min Mat Sto Turns Passed 6474 | 54 1290 814 3530 786 Spaces Moved 3640 | 42 918 617 1827 236 Core 13 | 13 . . . . Treads . | . . . . . Legs 3627 | 29 918 617 1827 236 Wheels . | . . . . . Hover . | . . . . . Flight . | . . . . . Fastest Speed 50 | 50 120 120 120 120 Average Speed 141 | 98 120 120 155 183 Slowest Speed 260 | 120 120 120 260 190 Overloaded Moves . | . . . . . Propulsion Burnouts . | . . . . . Robots Hopped . | . . . . . Cave-ins Triggered . | . . . . . Exploration Rate (%) 66 | 3 97 99 99 33 Regions Visited 4 Branch Regions 2 Pre-discovered Areas 2 | . . 2 . . Known Exits Taken 3 | . 1 1 1 . Unknown Exits Taken 1 | 1 . . . . Scrap Searched 3 | . . 3 . . Spaces Dug 23 | . . . 16 7 Terrain Destroyed 31 | . . . 24 7 Melee . | . . . . . Projectile . | . . . . . AOE 31 | . . . 24 7 Terrain Rammed . | . . . . . Walls Destroyed . | . . . . . Machines Disabled . | . . . . . Actions | -11 -10 -10 -9 -9 --------- Run | Scr Mat Min Mat Sto Total 4526 | 54 1022 663 2271 516 Wait 434 | . 1 31 192 210 Move 3636 | 41 917 616 1826 236 Hop . | . . . . . Pick Up 59 | 7 14 1 33 4 Fast Attach 6 | 1 2 . 1 2 Attach 16 | 5 2 . 8 1 Detach . | . . . . . Swap 67 | . 6 . 45 16 Drop 43 | . 8 1 27 7 Fire 239 | . 63 14 123 39 Melee 23 | . 8 . 15 . Ram . | . . . . . Kick 3 | . 1 . 1 1 Crush . | . . . . . Escape Stasis . | . . . . . Rewire . | . . . . . Trap . | . . . . . Miscellaneous . | . . . . . Route ------- -11/Scrapyard -10/Materials (discovered 5 exits: *Mat x3 / *Min x2) -10/Mines (discovered 2 exits: *Mat x2) -9/Materials (discovered 6 exits: *Mat x3 / *Min x2 / *Sto) -9/Storage History --------- Turn | Location | Event 9 | -11/Scrapyard | Discovered new exit (range 16) 55 | -11/Scrapyard | Entered Materials 328 | -10/Materials | Build established: Mutant 402 | -10/Materials | Discovered new exit (range 16) 463 | -10/Materials | Discovered new exit (range 8) 495 | -10/Materials | Discovered new exit (range 15) 654 | -10/Materials | Discovered new exit (range 16) 1122 | -10/Materials | Discovered new exit (range 11) 1283 | -10/Materials | Identified exit to Materials 1341 | -10/Materials | Identified exit to Mines 1345 | -10/Materials | Entered Mines 1351 | -10/Mines | Met a Derelict bent on vengeance 1387 | -10/Mines | Learned Materials garrison access intel 1605 | -10/Mines | Learned Materials non-interactive machine intel 1774 | -10/Mines | Found a damaged Exp. Sensor Array with a note attached 1777 | -10/Mines | Found Prototype Device 2058 | -10/Mines | Learned location of Zion (-7) 2060 | -10/Mines | Discovered exit to Materials (range 9) 2082 | -10/Mines | Learned location of Storage (-9) 2130 | -10/Mines | Discovered exit to Materials (range 7) 2159 | -10/Mines | Entered Materials 2159 | -9/Materials | Evolved 2 slots: Utility x2 2160 | -9/Materials | Loaded intel: 42 non-interactive machine locations 2300 | -9/Materials | Discovered new exit (range 15) 2477 | -9/Materials | Build established: Scavenger-Mutant 2613 | -9/Materials | Discovered new exit (range 13) 2651 | -9/Materials | Identified exit to Materials 3335 | -9/Materials | Discovered exit to Materials (range 9) 3548 | -9/Materials | Core integrity fell below 50% 3623 | -9/Materials | Discovered new exit (range 13) 3703 | -9/Materials | Identified exit to Mines 4157 | -9/Materials | Discovered exit to Mines (range 8) 4406 | -9/Materials | Discovered exit to Materials (range 4) 4714 | -9/Materials | Identified exit to Storage 5219 | -9/Materials | Identified Exp. Sensor Array 5689 | -9/Materials | Entered Storage 5976 | -9/Storage | Core integrity fell below 20% 6020 | -9/Storage | Destroyed 7 combat bots 6475 | -9/Storage | Destroyed by G-34 Mercenary with Small Laser Last Messages --------------- 06357_ R-06 Scavenger collects Beam Rifle. 06359_ K-01 Serf collects debris. 06361_ R-06 Scavenger collects Ion Engine. 06368_ Acquired 30 matter. 06380_ Triggered Alarm Trap. 06380_ An alarm sounds. 06380_ ALERT: Alarm triggered, dispatching investigation squad. 06393_ Connecting with Door Terminal... >>Open(Door) Sealed Heavy Doors opened. 06398_ Dropped Cld. Ion Engine. 06399_ Acquired Prototype Reactor. 06400_ Identified Cold Fusion Reactor. 06441_ G-34 Mercenary destroyed. 06457_ Dropped Aluminum Leg. 06458_ K-01 Serf collects debris. 06461_ Acquired 11 matter. 06462_ K-01 Serf collects debris. 06468_ Acquired 29 matter. 06470_ K-01 Serf collects debris. Map ----- +----------------------------------------------------+ | | | ???????????????????????????????? | | ???????????????????????????????? | | ???????????????????????????????# | | ???????????????????????????????# | | ???????????????????????????????# | | ???????????????????????????????# | | ??????????????????????????????## | | ??????????????????????????????# | | ???????????????????????????????# | | ???????????????????????????????# | | #######????????????????????????# | | # #????????????????????????# | | # #????????????????????????? | | # #????????????????????##### | | # #####??????????????# | | # """ # ###??????????????##### | | # """ + #T###???????????? # | | # """ # + * #???????????? ? | | # # #####???????????? ? | | # """ # #???????????????? ?? | | # """ # #??????????????? ?? | | # """ # #??????????????? ??? | | # # k #??????????????? ??? | | ## ####*! #??????????????? ???? | | ?##??##@= ##?????????????? ???? | | ?????# = ###############+##### | | ?????# %% % % % | | ?????# T % %% | | ?????# % x %% % % | | ?????# ###############+##### | | ?????## ##?????????## | | ??????# k#??????????# """ | | ??????# #??????????## "R" """ | | ??????# #??????????#T " " """ | | ??????+ #??????????## """ | | ??????#gg #???????????#!!* """ | | ??????# #???????????#!* """ | | ??????# #???????????#!* | | ??????# #???????????########## | | ??????# #????????????????????? | | ??????# #????????????????????? | | ??????# #????????????????????? | | ??????# ?????????????????????? | | ??????? ?????????????????????? | | ???????????????????????????????? | | ???????????????????????????????? | | ???????????????????????????????? | | ???????????????????????????????? | | ???????????????????????????????? | +----------------------------------------------------+ Best States ------------- Heat Dissipation 42 Energy Generation 14 Energy Capacity 280 Matter Stores 300 Matter Capacity 300 Sight Range 16 Robot Scan Range 20 Terrain Scan Density 85 Armor Coverage 150 Resistance: KI 20 Resistance: TH 20 Resistance: EX 20 Resistance: EM 20 Resistance: I 20 Resistance: S 20 Resistance: P 20 Evasion (%) 55 Offensive Hacking 20 Item Schematics ----------------- Datajack | -9/Materials | Scanalyzed Robot Schematics ------------------ None Fabricated ------------ Nothing Alien Tech Used ----------------- None Achievements -------------- It's Just You Challenges ------------ None Game ------ Seed TitaniumUtilityComputer Manual? 0 Play Time 01:30:19 Cumulative 20.7 hours Start 2022.03.24 @ 19:11:16 End 2022.03.24 @ 23:02:03 Sessions 6 Manual Loads 0 Difficulty Adventurer Special Mode None Game No. 11 Rogue 0 Adventurer 11 Explorer 0 Win Type - Total 0 Types 0/0/0/0/0/0/0/0/0 Lore% 18 Gallery% 17 Achievement% 17 Wizard Run 0 Options --------- ASCII 0 Keyboard 0 Movement Mouse Keybinds 0 Fullscreen 2 Font 24/Smallcaps Map View 76x50 Tactical HUD 1 Map Filters NONE Filters NONE Steam 1 RUN: 19817a7d-f2f2-4da6-8b2f-aef366fd8d97